[Event "Late-Titled-Tuesday-Blitz-May-28-2024"]
[Site "Chess.com"]
[Date "2024.05.28"]
[Round "2"]
[White "rezamahdavi2008"]
[Black "bazar-wokzal"]
[Result "1-0"]
[WhiteElo "3003"]
[BlackElo "2594"]
[TimeControl "180+1"]
[EndTime "14:18:55 PDT"]
[Termination "rezamahdavi2008 won by resignation"]

1. e4 {[%clk 0:03:00.9]} 1... c5 {[%clk 0:02:58.8]} 2. Nf3 {[%clk 0:03:01]} 2...
d6 {[%clk 0:02:58.8]} 3. d4 {[%clk 0:03:00]} 3... cxd4 {[%clk 0:02:58.8]} 4.
Nxd4 {[%clk 0:03:00.8]} 4... Nf6 {[%clk 0:02:59.3]} 5. Nc3 {[%clk 0:03:01.4]}
5... a6 {[%clk 0:02:59.8]} 6. h3 {[%clk 0:02:59.9]} 6... g6 {[%clk 0:02:58.7]}
7. g4 {[%clk 0:02:59.2]} 7... Bg7 {[%clk 0:02:58.6]} 8. Bg2 {[%clk 0:02:59.8]}
8... O-O {[%clk 0:02:58.2]} 9. Be3 {[%clk 0:03:00.1]} 9... Nc6 {[%clk
0:02:57.3]} 10. O-O {[%clk 0:02:56.1]} 10... Bd7 {[%clk 0:02:56.6]} 11. Nb3
{[%clk 0:02:50.1]} 11... Rc8 {[%clk 0:02:54.9]} 12. Qe2 {[%clk 0:02:50.3]} 12...
Ne5 {[%clk 0:02:54]} 13. Rad1 {[%clk 0:02:51]} 13... Nc4 {[%clk 0:02:52.3]} 14.
Bc1 {[%clk 0:02:51.6]} 14... b5 {[%clk 0:02:47.8]} 15. f4 {[%clk 0:02:48.2]}
15... b4 {[%clk 0:02:46.5]} 16. Nd5 {[%clk 0:02:44.4]} 16... Nxd5 {[%clk
0:02:39.6]} 17. Rxd5 {[%clk 0:02:40.5]} 17... Bb5 {[%clk 0:02:36.9]} 18. Qf2
{[%clk 0:02:06.2]} 18... Nxb2 {[%clk 0:02:33.7]} 19. Re1 {[%clk 0:02:06.1]}
19... Na4 {[%clk 0:02:21.9]} 20. e5 {[%clk 0:02:01.6]} 20... Nc3 {[%clk
0:02:16.5]} 21. Rd2 {[%clk 0:02:01.8]} 21... Nxa2 {[%clk 0:02:15]} 22. Bb2
{[%clk 0:02:02.5]} 22... Nc3 {[%clk 0:02:06.1]} 23. Nd4 {[%clk 0:02:00.1]} 23...
Qb6 {[%clk 0:01:55.6]} 24. Nxb5 {[%clk 0:01:20.5]} 24... Qxf2+ {[%clk
0:01:52.6]} 25. Kxf2 {[%clk 0:01:21.4]} 25... Nxb5 {[%clk 0:01:51.6]} 26. Bb7
{[%clk 0:01:21.3]} 26... Rc5 {[%clk 0:01:29.8]} 27. Bxa6 {[%clk 0:01:18.1]}
27... dxe5 {[%clk 0:01:29.6]} 28. Bxe5 {[%clk 0:01:12.8]} 28... Bxe5 {[%clk
0:01:28.5]} 29. Rxe5 {[%clk 0:01:13.7]} 29... Rxe5 {[%clk 0:01:27.7]} 30. fxe5
{[%clk 0:01:14.6]} 30... Nc3 {[%clk 0:01:27.1]} 31. Rd4 {[%clk 0:01:09.2]} 31...
f5 {[%clk 0:01:21.7]} 32. Ke3 {[%clk 0:00:56.1]} 32... Rb8 {[%clk 0:01:15.7]}
33. Bc4+ {[%clk 0:00:50.9]} 33... Kg7 {[%clk 0:01:07.1]} 34. Rd7 {[%clk
0:00:48.9]} 34... fxg4 {[%clk 0:01:06]} 35. Rxe7+ {[%clk 0:00:47.6]} 35... Kh6
{[%clk 0:01:05.6]} 36. hxg4 {[%clk 0:00:47.1]} 36... Rc8 {[%clk 0:01:01.9]} 37.
Bb3 {[%clk 0:00:46]} 37... Kg5 {[%clk 0:00:57.8]} 38. Rxh7 {[%clk 0:00:45.4]}
38... Re8 {[%clk 0:00:57.8]} 39. e6 {[%clk 0:00:35.4]} 39... Kxg4 {[%clk
0:00:58.2]} 40. Kd4 {[%clk 0:00:30.6]} 40... g5 {[%clk 0:00:46.2]} 41. e7 {[%clk
0:00:25.9]} 41... Kf5 {[%clk 0:00:42.7]} 42. Rf7+ {[%clk 0:00:20.6]} 42... Kg6
{[%clk 0:00:42.4]} 43. Ke5 {[%clk 0:00:21.3]} 43... Ne2 {[%clk 0:00:18.2]} 44.
Kd6 {[%clk 0:00:19.9]} 44... Nd4 {[%clk 0:00:13.1]} 45. Kd7 {[%clk 0:00:12.8]}
45... Rxe7+ {[%clk 0:00:06.8]} 46. Rxe7 {[%clk 0:00:08.4]} 46... g4 {[%clk
0:00:06.9]} 47. Re4 {[%clk 0:00:09]} 47... Nxb3 {[%clk 0:00:06.9]} 48. cxb3
{[%clk 0:00:08.3]} 48... Kf5 {[%clk 0:00:07]} 49. Rxb4 {[%clk 0:00:09]} 49... g3
{[%clk 0:00:07.4]} 50. Rb8 {[%clk 0:00:09.5]} 1-0

[Event "Late-Titled-Tuesday-Blitz-May-28-2024"]
[Site "Chess.com"]
[Date "2024.05.28"]
[Round "2"]
[White "stollenmonster"]
[Black "ChessLebaneseSalah"]
[Result "1-0"]
[WhiteElo "2855"]
[BlackElo "2550"]
[TimeControl "180+1"]
[EndTime "14:18:55 PDT"]
[Termination "stollenmonster won by resignation"]

1. e4 {[%clk 0:03:00.9]} 1... e5 {[%clk 0:02:54.9]} 2. Nc3 {[%clk 0:02:59.9]}
2... Nc6 {[%clk 0:02:54.4]} 3. g3 {[%clk 0:02:59.9]} 3... Bc5 {[%clk 0:02:53.6]}
4. Bg2 {[%clk 0:03:00]} 4... Nf6 {[%clk 0:02:53.1]} 5. h3 {[%clk 0:02:59.9]}
5... O-O {[%clk 0:02:52]} 6. Nge2 {[%clk 0:03:00.3]} 6... d6 {[%clk 0:02:48.2]}
7. d3 {[%clk 0:03:00.6]} 7... Nd4 {[%clk 0:02:46.6]} 8. O-O {[%clk 0:03:00.1]}
8... Re8 {[%clk 0:02:39.2]} 9. Kh2 {[%clk 0:02:59.9]} 9... c6 {[%clk 0:02:28.5]}
10. f4 {[%clk 0:02:55.1]} 10... b5 {[%clk 0:02:22.8]} 11. a3 {[%clk 0:02:51.4]}
11... a5 {[%clk 0:02:22.6]} 12. f5 {[%clk 0:02:47.8]} 12... Bb7 {[%clk
0:02:18.2]} 13. g4 {[%clk 0:02:47.9]} 13... h6 {[%clk 0:01:40.8]} 14. Ng3 {[%clk
0:02:45.4]} 14... d5 {[%clk 0:01:30.9]} 15. Nh5 {[%clk 0:02:34.7]} 15... dxe4
{[%clk 0:01:25.8]} 16. Nxf6+ {[%clk 0:02:33.1]} 16... Qxf6 {[%clk 0:01:24.9]}
17. Nxe4 {[%clk 0:02:33.7]} 17... Qe7 {[%clk 0:01:20.1]} 18. f6 {[%clk
0:02:34.1]} 18... gxf6 {[%clk 0:01:17.6]} 19. Rxf6 {[%clk 0:02:21.9]} 19... Ne6
{[%clk 0:01:03]} 20. Bxh6 {[%clk 0:02:12.5]} 20... Nf4 {[%clk 0:00:54.4]} 21.
Bg5 {[%clk 0:02:11]} 21... Qf8 {[%clk 0:00:51.7]} 22. Qe1 {[%clk 0:01:46.2]}
22... Be7 {[%clk 0:00:46.6]} 23. Rf5 {[%clk 0:01:44.4]} 23... f6 {[%clk
0:00:30.4]} 24. Nxf6+ {[%clk 0:01:35.7]} 24... Bxf6 {[%clk 0:00:29.6]} 25. Bxf6
{[%clk 0:01:31.3]} 25... Nxg2 {[%clk 0:00:23.2]} 26. Kxg2 {[%clk 0:01:32.2]}
26... c5+ {[%clk 0:00:20.6]} 27. Kh2 {[%clk 0:01:32.3]} 27... e4 {[%clk
0:00:19.3]} 28. Qh4 {[%clk 0:00:43.1]} 28... Qd6+ {[%clk 0:00:18.1]} 29. Kg1
{[%clk 0:00:43.5]} 29... exd3 {[%clk 0:00:08.4]} 30. Qh8+ {[%clk 0:00:42.8]}
30... Kf7 {[%clk 0:00:08.6]} 31. Qg7+ {[%clk 0:00:43.5]} 31... Ke6 {[%clk
0:00:08.3]} 32. Re5+ {[%clk 0:00:44.1]} 32... Qxe5 {[%clk 0:00:05.6]} 33. Bxe5
{[%clk 0:00:44.3]} 33... dxc2 {[%clk 0:00:02.9]} 34. Qxb7 {[%clk 0:00:43.6]}
34... Kxe5 {[%clk 0:00:02.6]} 35. Qxb5 {[%clk 0:00:43.5]} 35... Rad8 {[%clk
0:00:01]} 36. Qxc5+ {[%clk 0:00:43.1]} 36... Kf4 {[%clk 0:00:01.6]} 37. Qxc2
{[%clk 0:00:43.3]} 37... Re3 {[%clk 0:00:01]} 38. Qh2+ {[%clk 0:00:42.7]} 38...
Rg3+ {[%clk 0:00:01]} 39. Kh1 {[%clk 0:00:41.9]} 39... Rd3 {[%clk 0:00:01]} 40.
Rf1+ {[%clk 0:00:42]} 40... Kg5 {[%clk 0:00:01.4]} 41. Rf5+ {[%clk 0:00:27.2]}
41... Kh6 {[%clk 0:00:01.6]} 42. Rh5+ {[%clk 0:00:23.1]} 42... Kg6 {[%clk
0:00:01.9]} 43. Qxg3 {[%clk 0:00:23.6]} 43... Rxg3 {[%clk 0:00:01.9]} 44. Kh2
{[%clk 0:00:24.3]} 44... Rb3 {[%clk 0:00:01.7]} 45. Rxa5 {[%clk 0:00:24.9]}
45... Rxb2+ {[%clk 0:00:02.3]} 46. Kg3 {[%clk 0:00:25.1]} 46... Rb3+ {[%clk
0:00:02.6]} 47. Kh4 {[%clk 0:00:25.7]} 47... Rb7 {[%clk 0:00:02.6]} 48. a4
{[%clk 0:00:25.9]} 48... Kh7 {[%clk 0:00:02.7]} 49. Ra6 {[%clk 0:00:25.3]} 49...
Kg7 {[%clk 0:00:02.9]} 50. a5 {[%clk 0:00:25.5]} 50... Rb5 {[%clk 0:00:02.9]}
51. g5 {[%clk 0:00:25.3]} 51... Rb4+ {[%clk 0:00:01.9]} 52. Kh5 {[%clk
0:00:25.6]} 52... Rb7 {[%clk 0:00:02.1]} 53. h4 {[%clk 0:00:25.4]} 53... Kh7
{[%clk 0:00:02.4]} 54. Rb6 {[%clk 0:00:25.3]} 54... Ra7 {[%clk 0:00:02.3]} 55.
a6 {[%clk 0:00:25.8]} 55... Kh8 {[%clk 0:00:02.6]} 56. Rb8+ {[%clk 0:00:25.2]}
56... Kh7 {[%clk 0:00:01.8]} 57. Rb7+ {[%clk 0:00:25.7]} 57... Kh8 {[%clk
0:00:01.1]} 58. Rxa7 {[%clk 0:00:25.6]} 58... Kg8 {[%clk 0:00:01.9]} 59. Kg6
{[%clk 0:00:25.8]} 1-0

[Event "Late-Titled-Tuesday-Blitz-May-28-2024"]
[Site "Chess.com"]
[Date "2024.05.28"]
[Round "2"]
[White "Love7Unicorn"]
[Black "jamengrand"]
[Result "1-0"]
[WhiteElo "2534"]
[BlackElo "2326"]
[TimeControl "180+1"]
[EndTime "14:18:59 PDT"]
[Termination "Love7Unicorn won on time"]

1. d4 {[%clk 0:02:57.5]} 1... d5 {[%clk 0:02:59.8]} 2. c4 {[%clk 0:02:57.2]}
2... e6 {[%clk 0:02:58.9]} 3. g3 {[%clk 0:02:57.4]} 3... c5 {[%clk 0:02:58.8]}
4. cxd5 {[%clk 0:02:57.1]} 4... exd5 {[%clk 0:02:58.9]} 5. Nf3 {[%clk
0:02:57.4]} 5... Nc6 {[%clk 0:02:58.9]} 6. Bg2 {[%clk 0:02:57]} 6... Nf6 {[%clk
0:02:56.7]} 7. O-O {[%clk 0:02:56.7]} 7... cxd4 {[%clk 0:02:55.5]} 8. Nxd4
{[%clk 0:02:55.1]} 8... Bc5 {[%clk 0:02:55.6]} 9. Nb3 {[%clk 0:02:37]} 9... Bb6
{[%clk 0:02:55.3]} 10. Nc3 {[%clk 0:02:32.9]} 10... O-O {[%clk 0:02:54.9]} 11.
Bg5 {[%clk 0:02:31]} 11... Be6 {[%clk 0:02:41.2]} 12. Rc1 {[%clk 0:02:20.6]}
12... h6 {[%clk 0:02:36.1]} 13. Bf4 {[%clk 0:02:09.1]} 13... g5 {[%clk
0:02:18.4]} 14. Bd2 {[%clk 0:01:57.8]} 14... d4 {[%clk 0:01:47.5]} 15. Na4
{[%clk 0:01:56.6]} 15... d3 {[%clk 0:01:47.7]} 16. Bc3 {[%clk 0:01:20.9]} 16...
dxe2 {[%clk 0:01:36.9]} 17. Qxe2 {[%clk 0:01:21]} 17... Nd5 {[%clk 0:01:36.9]}
18. Nxb6 {[%clk 0:00:33.1]} 18... axb6 {[%clk 0:00:58.1]} 19. Rfd1 {[%clk
0:00:23.7]} 19... Nxc3 {[%clk 0:00:53.5]} 20. Rxc3 {[%clk 0:00:23.7]} 20... Qf6
{[%clk 0:00:53]} 21. a3 {[%clk 0:00:20.7]} 21... Bxb3 {[%clk 0:00:51.1]} 22.
Rxb3 {[%clk 0:00:15.8]} 22... Nd4 {[%clk 0:00:51.3]} 23. Qe3 {[%clk 0:00:15.2]}
23... Nxb3 {[%clk 0:00:46.2]} 24. Qxb3 {[%clk 0:00:16.1]} 24... Rad8 {[%clk
0:00:45.3]} 25. Bxb7 {[%clk 0:00:12.1]} 25... Rxd1+ {[%clk 0:00:42.3]} 26. Qxd1
{[%clk 0:00:13]} 26... Qxb2 {[%clk 0:00:42.1]} 27. a4 {[%clk 0:00:12.6]} 27...
Rb8 {[%clk 0:00:31]} 28. Qd7 {[%clk 0:00:09.6]} 28... Qf6 {[%clk 0:00:18.7]} 29.
Bd5 {[%clk 0:00:09.4]} 29... Rd8 {[%clk 0:00:14.9]} 30. Bxf7+ {[%clk 0:00:09.4]}
30... Kg7 {[%clk 0:00:15.5]} 31. Qc7 {[%clk 0:00:09.9]} 31... Qd6 {[%clk
0:00:12.5]} 32. Qc3+ {[%clk 0:00:08]} 32... Qd4 {[%clk 0:00:12]} 33. Qc7 {[%clk
0:00:05.7]} 33... Rd7 {[%clk 0:00:11.2]} 34. Qc8 {[%clk 0:00:02.5]} 34... Rxf7
{[%clk 0:00:10.7]} 35. Qc2 {[%clk 0:00:01.9]} 35... Qf6 {[%clk 0:00:08.7]} 36.
Kg2 {[%clk 0:00:01.5]} 36... Re7 {[%clk 0:00:07.7]} 37. Qd3 {[%clk 0:00:01.4]}
37... Qe5 {[%clk 0:00:07.4]} 38. Qd8 {[%clk 0:00:01]} 38... Qe4+ {[%clk
0:00:06.5]} 39. Kg1 {[%clk 0:00:01.3]} 39... g4 {[%clk 0:00:05.1]} 40. Qd6
{[%clk 0:00:01]} 40... Qe1+ {[%clk 0:00:04.5]} 41. Kg2 {[%clk 0:00:01.5]} 41...
Qe4+ {[%clk 0:00:04.7]} 42. Kg1 {[%clk 0:00:02]} 42... Qe6 {[%clk 0:00:03.7]}
43. Qd4+ {[%clk 0:00:02]} 43... Kh7 {[%clk 0:00:02.5]} 44. Qd3+ {[%clk
0:00:02.1]} 44... Qg6 {[%clk 0:00:02.7]} 45. Qd4 {[%clk 0:00:02]} 45... Rf7
{[%clk 0:00:02.3]} 46. Qd5 {[%clk 0:00:01.2]} 46... Qf5 {[%clk 0:00:01.2]} 47.
Qd2 {[%clk 0:00:01]} 47... h5 {[%clk 0:00:01]} 48. Kg2 {[%clk 0:00:01.1]} 48...
Qf3+ {[%clk 0:00:01]} 49. Kg1 {[%clk 0:00:01.5]} 1-0

[Event "Late-Titled-Tuesday-Blitz-May-28-2024"]
[Site "Chess.com"]
[Date "2024.05.28"]
[Round "2"]
[White "CarlssonLudvig"]
[Black "Kirill_Klukin"]
[Result "0-1"]
[WhiteElo "2562"]
[BlackElo "2895"]
[TimeControl "180+1"]
[EndTime "14:19:01 PDT"]
[Termination "Kirill_Klukin won by resignation"]

1. e4 {[%clk 0:03:00.9]} 1... c5 {[%clk 0:03:00.2]} 2. Nf3 {[%clk 0:02:56.5]}
2... Nc6 {[%clk 0:03:00.7]} 3. Bb5 {[%clk 0:02:55.2]} 3... g6 {[%clk 0:03:01.1]}
4. O-O {[%clk 0:02:54.5]} 4... Bg7 {[%clk 0:03:01.4]} 5. Re1 {[%clk 0:02:54.8]}
5... Nf6 {[%clk 0:02:58.6]} 6. Bxc6 {[%clk 0:02:52.5]} 6... dxc6 {[%clk
0:02:54.8]} 7. Na3 {[%clk 0:02:50.6]} 7... O-O {[%clk 0:02:52.2]} 8. d3 {[%clk
0:02:50.7]} 8... b6 {[%clk 0:02:47.7]} 9. h3 {[%clk 0:02:46.5]} 9... Qc7 {[%clk
0:02:46.6]} 10. Qd2 {[%clk 0:02:46.5]} 10... Rd8 {[%clk 0:02:39.8]} 11. Nc4
{[%clk 0:02:36.7]} 11... Be6 {[%clk 0:02:39.6]} 12. Qf4 {[%clk 0:02:09.5]} 12...
Qxf4 {[%clk 0:02:35.9]} 13. Bxf4 {[%clk 0:02:10.4]} 13... Bxc4 {[%clk
0:02:36.8]} 14. dxc4 {[%clk 0:02:11.1]} 14... Nh5 {[%clk 0:02:34.6]} 15. Be5
{[%clk 0:02:11.3]} 15... Bxe5 {[%clk 0:02:07.6]} 16. Nxe5 {[%clk 0:02:12.2]}
16... Rd6 {[%clk 0:02:08.5]} 17. Nd3 {[%clk 0:01:58.4]} 17... Rad8 {[%clk
0:02:05.8]} 18. b3 {[%clk 0:01:56.4]} 18... Ng7 {[%clk 0:02:05.5]} 19. a3 {[%clk
0:00:33.4]} 19... Ne6 {[%clk 0:02:02.8]} 20. b4 {[%clk 0:00:33.4]} 20... Nd4
{[%clk 0:01:41.1]} 21. bxc5 {[%clk 0:00:33.3]} 21... bxc5 {[%clk 0:01:41.5]} 22.
Nxc5 {[%clk 0:00:34.2]} 22... Nxc2 {[%clk 0:01:38.8]} 23. Nb7 {[%clk 0:00:32.8]}
23... Nxa1 {[%clk 0:01:32.6]} 24. Nxd8 {[%clk 0:00:32.5]} 24... Rxd8 {[%clk
0:01:33]} 25. Rxa1 {[%clk 0:00:32.4]} 25... Rd4 {[%clk 0:01:33.7]} 26. Rb1
{[%clk 0:00:26.5]} 26... Rxe4 {[%clk 0:01:18.4]} 27. Rb7 {[%clk 0:00:25.9]}
27... a5 {[%clk 0:01:19]} 28. Ra7 {[%clk 0:00:23.4]} 28... Re5 {[%clk
0:01:18.1]} 29. Rc7 {[%clk 0:00:17]} 29... Rc5 {[%clk 0:01:17.2]} 30. Rxe7
{[%clk 0:00:17.2]} 30... Rxc4 {[%clk 0:01:17.9]} 31. Ra7 {[%clk 0:00:15.5]}
31... a4 {[%clk 0:01:13.3]} 32. g3 {[%clk 0:00:14.1]} 32... Kg7 {[%clk
0:01:13.8]} 33. Kg2 {[%clk 0:00:14.1]} 33... Kf6 {[%clk 0:01:14.6]} 34. Ra5
{[%clk 0:00:14.4]} 34... h5 {[%clk 0:01:14.8]} 35. h4 {[%clk 0:00:14.4]} 35...
Ke6 {[%clk 0:01:15]} 36. Ra7 {[%clk 0:00:13.6]} 36... Rd4 {[%clk 0:01:13.9]} 37.
Ra6 {[%clk 0:00:11.5]} 37... Kd5 {[%clk 0:01:05.1]} 38. Ra7 {[%clk 0:00:11.6]}
38... Ke6 {[%clk 0:01:03.6]} 39. Ra6 {[%clk 0:00:11.2]} 39... Rc4 {[%clk
0:00:57.2]} 40. Kf3 {[%clk 0:00:08.3]} 40... Kd5 {[%clk 0:00:51.1]} 41. Ra7
{[%clk 0:00:06.6]} 41... Rc3+ {[%clk 0:00:51.5]} 42. Kf4 {[%clk 0:00:07]} 42...
Rxa3 {[%clk 0:00:51.9]} 43. Rxf7 {[%clk 0:00:07.5]} 43... Ra2 {[%clk 0:00:38]}
44. Kg5 {[%clk 0:00:06.7]} 44... a3 {[%clk 0:00:23.5]} 45. Kxg6 {[%clk
0:00:07.1]} 45... Re2 {[%clk 0:00:20.5]} 46. Kxh5 {[%clk 0:00:07.1]} 46... a2
{[%clk 0:00:20.1]} 47. Ra7 {[%clk 0:00:06.7]} 47... c5 {[%clk 0:00:19.8]} 48. g4
{[%clk 0:00:07]} 48... c4 {[%clk 0:00:20.3]} 49. g5 {[%clk 0:00:07.7]} 49...
Rxf2 {[%clk 0:00:20.2]} 50. g6 {[%clk 0:00:08.2]} 50... Rg2 {[%clk 0:00:20.7]}
51. Kh6 {[%clk 0:00:08.7]} 51... c3 {[%clk 0:00:21.3]} 52. g7 {[%clk 0:00:08]}
52... c2 {[%clk 0:00:14.7]} 53. Rd7+ {[%clk 0:00:06.8]} 53... Ke6 {[%clk
0:00:14.3]} 54. Rc7 {[%clk 0:00:06.6]} 54... a1=Q {[%clk 0:00:14.5]} 55. Rxc2
{[%clk 0:00:06.7]} 55... Qxg7+ {[%clk 0:00:14.9]} 0-1

[Event "Late-Titled-Tuesday-Blitz-May-28-2024"]
[Site "Chess.com"]
[Date "2024.05.28"]
[Round "2"]
[White "HansOnTwitch"]
[Black "Karttunen"]
[Result "1/2-1/2"]
[WhiteElo "3125"]
[BlackElo "2656"]
[TimeControl "180+1"]
[EndTime "14:19:06 PDT"]
[Termination "Game drawn by repetition"]

1. e4 {[%clk 0:02:56.8]} 1... c5 {[%clk 0:03:00.2]} 2. Nf3 {[%clk 0:02:42]} 2...
d6 {[%clk 0:03:00.2]} 3. d4 {[%clk 0:02:40.1]} 3... cxd4 {[%clk 0:03:00.5]} 4.
Nxd4 {[%clk 0:02:41]} 4... Nf6 {[%clk 0:03:00.7]} 5. Nc3 {[%clk 0:02:41.7]} 5...
a6 {[%clk 0:03:01.2]} 6. h3 {[%clk 0:02:40.5]} 6... e5 {[%clk 0:03:00]} 7. Nb3
{[%clk 0:02:40.6]} 7... h5 {[%clk 0:02:59.6]} 8. Bg5 {[%clk 0:02:39.5]} 8... Be6
{[%clk 0:02:46.1]} 9. Qf3 {[%clk 0:02:37.8]} 9... Nbd7 {[%clk 0:02:43.8]} 10.
O-O-O {[%clk 0:02:37.5]} 10... Rc8 {[%clk 0:02:30.6]} 11. Nd5 {[%clk 0:02:37.4]}
11... Bxd5 {[%clk 0:02:29.8]} 12. exd5 {[%clk 0:02:37.8]} 12... g6 {[%clk
0:02:07.3]} 13. g4 {[%clk 0:02:29.3]} 13... Bg7 {[%clk 0:02:06.7]} 14. Kb1
{[%clk 0:02:27.8]} 14... Qc7 {[%clk 0:02:01.5]} 15. Bd3 {[%clk 0:02:22.8]} 15...
Kf8 {[%clk 0:01:48.8]} 16. c3 {[%clk 0:02:22]} 16... b5 {[%clk 0:01:44]} 17. Nd2
{[%clk 0:02:18.2]} 17... Qb7 {[%clk 0:01:14.4]} 18. Bc2 {[%clk 0:02:08.9]} 18...
a5 {[%clk 0:01:06.3]} 19. Ne4 {[%clk 0:01:54.7]} 19... Nxe4 {[%clk 0:01:01.5]}
20. Bxe4 {[%clk 0:01:55.6]} 20... Kg8 {[%clk 0:00:57.8]} 21. Rc1 {[%clk
0:01:49.9]} 21... Nc5 {[%clk 0:00:56.1]} 22. Be3 {[%clk 0:01:44.7]} 22... Nxe4
{[%clk 0:00:54]} 23. Qxe4 {[%clk 0:01:45.6]} 23... Rc4 {[%clk 0:00:54.1]} 24.
Qg2 {[%clk 0:01:45.6]} 24... hxg4 {[%clk 0:00:51.6]} 25. hxg4 {[%clk 0:01:45.3]}
25... Rxh1 {[%clk 0:00:51.5]} 26. Rxh1 {[%clk 0:01:43.8]} 26... b4 {[%clk
0:00:51]} 27. Qh3 {[%clk 0:01:13.5]} 27... bxc3 {[%clk 0:00:45.8]} 28. b3 {[%clk
0:01:13.5]} 28... c2+ {[%clk 0:00:40.2]} 29. Kc1 {[%clk 0:01:11.3]} 29... Qb4
{[%clk 0:00:27.2]} 30. bxc4 {[%clk 0:00:46.5]} 30... Qb1+ {[%clk 0:00:18.9]} 31.
Kd2 {[%clk 0:00:46.5]} 31... Qb4+ {[%clk 0:00:19.1]} 32. Kxc2 {[%clk 0:00:38.6]}
32... Qxc4+ {[%clk 0:00:19.3]} 33. Kd2 {[%clk 0:00:39.3]} 33... Qb4+ {[%clk
0:00:17.9]} 34. Ke2 {[%clk 0:00:39.7]} 34... Qc4+ {[%clk 0:00:11.1]} 35. Kf3
{[%clk 0:00:40.1]} 35... Qxd5+ {[%clk 0:00:11.3]} 36. Kg3 {[%clk 0:00:40.9]}
36... Qxa2 {[%clk 0:00:10.3]} 37. Qh7+ {[%clk 0:00:40]} 37... Kf8 {[%clk
0:00:10.8]} 38. Bh6 {[%clk 0:00:39.4]} 38... Qb3+ {[%clk 0:00:08.3]} 39. Kh2
{[%clk 0:00:39.2]} 39... Bxh6 {[%clk 0:00:07.7]} 40. Qxh6+ {[%clk 0:00:40.1]}
40... Ke7 {[%clk 0:00:08.2]} 41. Qg5+ {[%clk 0:00:40.5]} 41... Ke6 {[%clk
0:00:08.7]} 42. Rc1 {[%clk 0:00:36.6]} 42... Qf3 {[%clk 0:00:06.3]} 43. Kg1
{[%clk 0:00:34.4]} 43... a4 {[%clk 0:00:06.1]} 44. Rc7 {[%clk 0:00:33.8]} 44...
a3 {[%clk 0:00:06.2]} 45. Qe7+ {[%clk 0:00:33.2]} 45... Kd5 {[%clk 0:00:06.7]}
46. Qxf7+ {[%clk 0:00:15.6]} 46... Qxf7 {[%clk 0:00:06]} 47. Rxf7 {[%clk
0:00:16.3]} 47... Kc4 {[%clk 0:00:06.5]} 48. Ra7 {[%clk 0:00:12.8]} 48... Kb3
{[%clk 0:00:06.7]} 49. Kf1 {[%clk 0:00:06.4]} 49... a2 {[%clk 0:00:05.4]} 50.
Ke2 {[%clk 0:00:07]} 50... Kb2 {[%clk 0:00:05.9]} 51. Kd3 {[%clk 0:00:02.8]}
51... d5 {[%clk 0:00:05]} 52. Rb7+ {[%clk 0:00:01.6]} 52... Kc1 {[%clk 0:00:05]}
53. Ra7 {[%clk 0:00:02.3]} 53... Kb2 {[%clk 0:00:05]} 54. Rb7+ {[%clk
0:00:01.5]} 54... Kc1 {[%clk 0:00:05.1]} 55. Rc7+ {[%clk 0:00:01.9]} 55... Kb1
{[%clk 0:00:04.6]} 56. Rb7+ {[%clk 0:00:01.9]} 56... Kc1 {[%clk 0:00:04.6]}
1/2-1/2

[Event "Late-Titled-Tuesday-Blitz-May-28-2024"]
[Site "Chess.com"]
[Date "2024.05.28"]
[Round "2"]
[White "Mariia89"]
[Black "Rakitic2010"]
[Result "0-1"]
[WhiteElo "2206"]
[BlackElo "2488"]
[TimeControl "180+1"]
[EndTime "14:19:09 PDT"]
[Termination "Rakitic2010 won on time"]

1. d4 {[%clk 0:02:59]} 1... Nf6 {[%clk 0:02:59.3]} 2. Nf3 {[%clk 0:02:59.5]}
2... e6 {[%clk 0:02:57.8]} 3. Bg5 {[%clk 0:03:00]} 3... c5 {[%clk 0:02:55.9]} 4.
e3 {[%clk 0:03:00.3]} 4... b6 {[%clk 0:02:53.4]} 5. Bd3 {[%clk 0:03:00.4]} 5...
Bb7 {[%clk 0:02:52.6]} 6. c3 {[%clk 0:03:00]} 6... Be7 {[%clk 0:02:51.3]} 7.
Nbd2 {[%clk 0:03:00.2]} 7... h6 {[%clk 0:02:50.2]} 8. Bh4 {[%clk 0:03:00.2]}
8... O-O {[%clk 0:02:50.4]} 9. Qe2 {[%clk 0:03:00.4]} 9... d6 {[%clk 0:02:46.6]}
10. O-O {[%clk 0:02:59.6]} 10... Nc6 {[%clk 0:02:47]} 11. Rfe1 {[%clk
0:02:53.8]} 11... Rc8 {[%clk 0:02:46]} 12. h3 {[%clk 0:02:51.9]} 12... Nd7
{[%clk 0:02:34.6]} 13. Bxe7 {[%clk 0:02:40.5]} 13... Qxe7 {[%clk 0:02:35.5]} 14.
e4 {[%clk 0:02:41.4]} 14... cxd4 {[%clk 0:02:34.7]} 15. cxd4 {[%clk 0:02:41]}
15... Nb4 {[%clk 0:02:34.9]} 16. a3 {[%clk 0:02:30.1]} 16... Nxd3 {[%clk
0:02:32.9]} 17. Qxd3 {[%clk 0:02:31]} 17... e5 {[%clk 0:02:15.5]} 18. b4 {[%clk
0:02:26.1]} 18... Rc7 {[%clk 0:02:09.2]} 19. Rac1 {[%clk 0:02:04.2]} 19... Rfc8
{[%clk 0:02:07]} 20. Rxc7 {[%clk 0:02:03.1]} 20... Rxc7 {[%clk 0:02:07.9]} 21.
d5 {[%clk 0:02:03.3]} 21... Qd8 {[%clk 0:02:02.7]} 22. Nb3 {[%clk 0:01:09.9]}
22... Qc8 {[%clk 0:02:00.1]} 23. Nfd2 {[%clk 0:01:10]} 23... Ba6 {[%clk
0:01:58]} 24. Qb1 {[%clk 0:01:09.6]} 24... Rc3 {[%clk 0:01:52.6]} 25. Rc1 {[%clk
0:01:08]} 25... f5 {[%clk 0:01:42.8]} 26. Rxc3 {[%clk 0:01:00.7]} 26... Qxc3
{[%clk 0:01:42.3]} 27. Qc1 {[%clk 0:01:01.3]} 27... Qxc1+ {[%clk 0:01:39.4]} 28.
Nxc1 {[%clk 0:01:01.2]} 28... Nf6 {[%clk 0:01:36.6]} 29. f3 {[%clk 0:00:56.8]}
29... fxe4 {[%clk 0:01:36]} 30. fxe4 {[%clk 0:00:57]} 30... Kf7 {[%clk
0:01:34.5]} 31. Kf2 {[%clk 0:00:57.1]} 31... g5 {[%clk 0:01:34.8]} 32. Ke3
{[%clk 0:00:53.9]} 32... Bb5 {[%clk 0:01:31.1]} 33. Na2 {[%clk 0:00:47.2]} 33...
h5 {[%clk 0:01:25.3]} 34. Nc3 {[%clk 0:00:47.5]} 34... Ba6 {[%clk 0:01:25.2]}
35. b5 {[%clk 0:00:46.7]} 35... Bc8 {[%clk 0:01:24.7]} 36. Nc4 {[%clk
0:00:45.5]} 36... Ke7 {[%clk 0:01:20.7]} 37. a4 {[%clk 0:00:42.4]} 37... Kd7
{[%clk 0:01:15.9]} 38. a5 {[%clk 0:00:41.6]} 38... Kc7 {[%clk 0:01:16.1]} 39.
axb6+ {[%clk 0:00:39.8]} 39... axb6 {[%clk 0:01:17]} 40. Nd2 {[%clk 0:00:24.1]}
40... g4 {[%clk 0:01:06.7]} 41. hxg4 {[%clk 0:00:21.1]} 41... hxg4 {[%clk
0:01:07.6]} 42. Kf2 {[%clk 0:00:20]} 42... Nh5 {[%clk 0:01:07.3]} 43. g3 {[%clk
0:00:20.1]} 43... Nf6 {[%clk 0:01:03.6]} 44. Nf1 {[%clk 0:00:19.1]} 44... Nd7
{[%clk 0:00:57.8]} 45. Ne3 {[%clk 0:00:16]} 45... Nc5 {[%clk 0:00:58.1]} 46. Ke2
{[%clk 0:00:09.7]} 46... Bd7 {[%clk 0:00:57.3]} 47. Nf5 {[%clk 0:00:04.7]} 47...
Nxe4 {[%clk 0:00:52.3]} 48. Nxe4 {[%clk 0:00:02]} 48... Bxf5 {[%clk 0:00:52.7]}
49. Nc3 {[%clk 0:00:01.4]} 49... Kd7 {[%clk 0:00:44.3]} 50. Ke3 {[%clk 0:00:02]}
50... Kd8 {[%clk 0:00:41.9]} 51. Ne2 {[%clk 0:00:02.3]} 51... Bc2 {[%clk
0:00:38.6]} 52. Nc3 {[%clk 0:00:02.7]} 52... Ke7 {[%clk 0:00:36.3]} 53. Kf2
{[%clk 0:00:02.8]} 53... Bb3 {[%clk 0:00:35.5]} 54. Ke3 {[%clk 0:00:03.5]} 54...
Kf6 {[%clk 0:00:34.5]} 55. Ke4 {[%clk 0:00:03.5]} 55... Bc2+ {[%clk 0:00:33.6]}
56. Ke3 {[%clk 0:00:03.9]} 56... Kf5 {[%clk 0:00:34.5]} 57. Kf2 {[%clk
0:00:04.1]} 57... e4 {[%clk 0:00:34.1]} 58. Ke3 {[%clk 0:00:03.5]} 58... Ke5
{[%clk 0:00:34.7]} 59. Kd2 {[%clk 0:00:03.1]} 59... Bb3 {[%clk 0:00:33.6]} 60.
Ke3 {[%clk 0:00:01.1]} 60... Bxd5 {[%clk 0:00:34.1]} 0-1